[Event "*** Titled Tuesday Blitz"]
[Site "Chess.com"]
[Date "2021.02.02"]
[Round "9"]
[White "tylityli"]
[Black "WiktoriaPOL"]
[Result "0-1"]
[WhiteElo "2289"]
[BlackElo "2008"]
[TimeControl "180+1"]
[EndTime "11:47:15 PST"]
[Termination "WiktoriaPOL won on time"]

1. d4 {[%clk 0:03:00.9]} 1... d5 {[%clk 0:02:59.2]} 2. c4 {[%clk 0:03:00.8]}
2... e5 {[%clk 0:02:58.7]} 3. dxe5 {[%clk 0:03:00.4]} 3... d4 {[%clk 0:02:58.3]}
4. Nf3 {[%clk 0:02:59.7]} 4... Nc6 {[%clk 0:02:51.9]} 5. a3 {[%clk 0:02:58.7]}
5... a5 {[%clk 0:02:50.8]} 6. Bf4 {[%clk 0:02:57.2]} 6... Bc5 {[%clk 0:02:46.9]}
7. e3 {[%clk 0:02:55.6]} 7... dxe3 {[%clk 0:02:44.4]} 8. Qxd8+ {[%clk
0:02:54.6]} 8... Nxd8 {[%clk 0:02:43.7]} 9. Bxe3 {[%clk 0:02:50.4]} 9... Bxe3
{[%clk 0:02:42.9]} 10. fxe3 {[%clk 0:02:51.3]} 10... Nc6 {[%clk 0:02:43.1]} 11.
Nc3 {[%clk 0:02:50.6]} 11... Bg4 {[%clk 0:02:35.5]} 12. O-O-O {[%clk 0:02:39.9]}
12... Nge7 {[%clk 0:02:31.5]} 13. Nb5 {[%clk 0:02:32.8]} 13... Rc8 {[%clk
0:02:30.4]} 14. Be2 {[%clk 0:02:27]} 14... O-O {[%clk 0:02:24.9]} 15. h3 {[%clk
0:02:23.1]} 15... Bxf3 {[%clk 0:02:16.5]} 16. Bxf3 {[%clk 0:02:20.8]} 16... Nxe5
{[%clk 0:02:16]} 17. Bxb7 {[%clk 0:02:19.9]} 17... Rb8 {[%clk 0:02:16]} 18. Ba6
{[%clk 0:01:32.4]} 18... Nxc4 {[%clk 0:02:08.9]} 19. Nxc7 {[%clk 0:01:30.2]}
19... Nxb2 {[%clk 0:02:00.1]} 20. Rd2 {[%clk 0:01:21.5]} 20... Na4 {[%clk
0:01:57.1]} 21. Rc2 {[%clk 0:01:17.9]} 21... Rb3 {[%clk 0:01:38]} 22. Nb5 {[%clk
0:01:03.8]} 22... Rxe3 {[%clk 0:01:33.5]} 23. Rd1 {[%clk 0:00:57.4]} 23... Nf5
{[%clk 0:01:23.8]} 24. Bb7 {[%clk 0:00:51.2]} 24... Rb3 {[%clk 0:01:14]} 25. Bc6
{[%clk 0:00:42.3]} 25... Ne3 {[%clk 0:01:11.9]} 26. Kd2 {[%clk 0:00:35.7]} 26...
Nxd1 {[%clk 0:01:01.8]} 27. Kxd1 {[%clk 0:00:34.9]} 27... Nb6 {[%clk 0:00:57.7]}
28. a4 {[%clk 0:00:23.8]} 28... Nxa4 {[%clk 0:00:54.7]} 29. Nd4 {[%clk
0:00:23.4]} 29... Rb1+ {[%clk 0:00:53.7]} 30. Kd2 {[%clk 0:00:23.7]} 30... Nb6
{[%clk 0:00:50.8]} 31. Ke3 {[%clk 0:00:22.1]} 31... a4 {[%clk 0:00:47.5]} 32.
Ra2 {[%clk 0:00:21.6]} 32... a3 {[%clk 0:00:42.7]} 33. Kd3 {[%clk 0:00:19.7]}
33... Rb2 {[%clk 0:00:33.8]} 34. Rxa3 {[%clk 0:00:18.1]} 34... Rd8 {[%clk
0:00:30.3]} 35. Kc3 {[%clk 0:00:18.2]} 35... Rb1 {[%clk 0:00:20.6]} 36. Bf3
{[%clk 0:00:17.5]} 36... h6 {[%clk 0:00:17.7]} 37. Nc6 {[%clk 0:00:16.6]} 37...
Re8 {[%clk 0:00:13.7]} 38. Kc2 {[%clk 0:00:15.6]} 38... Rb5 {[%clk 0:00:10]} 39.
Ra7 {[%clk 0:00:14.8]} 39... Rc5+ {[%clk 0:00:09.5]} 40. Kd3 {[%clk 0:00:14.1]}
40... Nd5 {[%clk 0:00:05.8]} 41. Kd4 {[%clk 0:00:13.9]} 41... Rxc6 {[%clk
0:00:04.1]} 42. Kxd5 {[%clk 0:00:13.5]} 42... Rf6 {[%clk 0:00:02.4]} 43. Rd7
{[%clk 0:00:11.5]} 43... Rf8 {[%clk 0:00:02.2]} 44. Ke4 {[%clk 0:00:10.3]} 44...
Rg6 {[%clk 0:00:02.4]} 45. Kf4 {[%clk 0:00:10.2]} 45... Rf6+ {[%clk 0:00:02.8]}
46. Ke5 {[%clk 0:00:09.9]} 46... Re6+ {[%clk 0:00:03.1]} 47. Kf5 {[%clk
0:00:09.3]} 47... Rf6+ {[%clk 0:00:03.3]} 48. Ke5 {[%clk 0:00:08.7]} 48... Kh7
{[%clk 0:00:03.6]} 49. Re7 {[%clk 0:00:07.1]} 49... Re6+ {[%clk 0:00:03.4]} 50.
Rxe6 {[%clk 0:00:06.9]} 50... fxe6 {[%clk 0:00:04.3]} 51. Kxe6 {[%clk
0:00:07.8]} 51... Rf6+ {[%clk 0:00:04.4]} 52. Ke5 {[%clk 0:00:08]} 52... Kg6
{[%clk 0:00:04.7]} 53. Ke4 {[%clk 0:00:07.8]} 53... Kg5 {[%clk 0:00:04.9]} 54.
Bg4 {[%clk 0:00:07.2]} 54... Kh4 {[%clk 0:00:04.9]} 55. Bf3 {[%clk 0:00:04.6]}
55... Kg3 {[%clk 0:00:05.2]} 56. Bg4 {[%clk 0:00:01.7]} 56... Rg6 {[%clk
0:00:05.2]} 57. Ke5 {[%clk 0:00:02.6]} 57... Rg5+ {[%clk 0:00:05.5]} 0-1

[Event "*** Titled Tuesday Blitz"]
[Site "Chess.com"]
[Date "2021.02.02"]
[Round "9"]
[White "IceBelka"]
[Black "MPGM"]
[Result "0-1"]
[WhiteElo "2398"]
[BlackElo "2602"]
[TimeControl "180+1"]
[EndTime "11:47:16 PST"]
[Termination "MPGM won by resignation"]

1. e4 {[%clk 0:02:59.5]} 1... e5 {[%clk 0:03:00.3]} 2. Nf3 {[%clk 0:02:58.3]}
2... Nc6 {[%clk 0:03:00.9]} 3. d4 {[%clk 0:02:58.5]} 3... exd4 {[%clk
0:02:54.9]} 4. Nxd4 {[%clk 0:02:59.4]} 4... d6 {[%clk 0:02:50.8]} 5. Nc3 {[%clk
0:02:53.6]} 5... Nf6 {[%clk 0:02:49.7]} 6. Bc4 {[%clk 0:02:45.3]} 6... Be7
{[%clk 0:02:48.8]} 7. O-O {[%clk 0:02:26.7]} 7... O-O {[%clk 0:02:47.3]} 8. a4
{[%clk 0:02:12.1]} 8... a5 {[%clk 0:02:40]} 9. Re1 {[%clk 0:02:02.1]} 9... Ne5
{[%clk 0:02:37.1]} 10. Ba2 {[%clk 0:01:53.7]} 10... c6 {[%clk 0:02:36.2]} 11. h3
{[%clk 0:01:50.6]} 11... Ng6 {[%clk 0:02:29.4]} 12. Be3 {[%clk 0:01:29.6]} 12...
Re8 {[%clk 0:02:17.7]} 13. Qd2 {[%clk 0:01:21.1]} 13... Bf8 {[%clk 0:02:16.9]}
14. f3 {[%clk 0:01:16.6]} 14... Nh5 {[%clk 0:02:12.9]} 15. Rad1 {[%clk
0:01:10.8]} 15... h6 {[%clk 0:02:01.8]} 16. Bf2 {[%clk 0:00:51.5]} 16... Nhf4
{[%clk 0:01:54.3]} 17. Nce2 {[%clk 0:00:23.5]} 17... Qg5 {[%clk 0:01:44]} 18.
Bg3 {[%clk 0:00:12.7]} 18... Nxe2+ {[%clk 0:01:17.8]} 19. Nxe2 {[%clk
0:00:13.6]} 19... Qf6 {[%clk 0:00:35.8]} 20. c3 {[%clk 0:00:13.3]} 20... d5
{[%clk 0:00:36.1]} 21. exd5 {[%clk 0:00:09.7]} 21... Bc5+ {[%clk 0:00:36.7]} 22.
Kh2 {[%clk 0:00:09.4]} 22... Bf5 {[%clk 0:00:36.2]} 23. Nf4 {[%clk 0:00:08.9]}
23... Nxf4 {[%clk 0:00:26.3]} 24. Qxf4 {[%clk 0:00:08.8]} 24... Bc2 {[%clk
0:00:19.3]} 25. Qxf6 {[%clk 0:00:08]} 25... gxf6 {[%clk 0:00:19.5]} 26. Rxe8+
{[%clk 0:00:08]} 26... Rxe8 {[%clk 0:00:19.9]} 27. Re1 {[%clk 0:00:08.7]} 27...
Rxe1 {[%clk 0:00:19.4]} 28. Bxe1 {[%clk 0:00:09.6]} 28... Bxa4 {[%clk
0:00:19.3]} 29. dxc6 {[%clk 0:00:09.6]} 29... Bxc6 {[%clk 0:00:19.3]} 30. Bg3
{[%clk 0:00:09.7]} 30... Kg7 {[%clk 0:00:18.8]} 31. Bc7 {[%clk 0:00:09.8]} 31...
b6 {[%clk 0:00:18.6]} 32. Kg3 {[%clk 0:00:09.8]} 32... Kg6 {[%clk 0:00:16.7]}
33. f4 {[%clk 0:00:10.2]} 33... Kf5 {[%clk 0:00:16.4]} 34. Bxf7 {[%clk
0:00:09.5]} 34... Ke4 {[%clk 0:00:15.9]} 35. Bg6+ {[%clk 0:00:09.5]} 35... Ke3
{[%clk 0:00:15.6]} 36. Bb1 {[%clk 0:00:08]} 36... Kd2 {[%clk 0:00:15.7]} 37. Bd8
{[%clk 0:00:08.4]} 37... Kc1 {[%clk 0:00:15.6]} 38. Bf5 {[%clk 0:00:08.5]} 38...
Kxb2 {[%clk 0:00:15]} 39. Bxf6 {[%clk 0:00:09]} 39... a4 {[%clk 0:00:15.4]} 40.
c4+ {[%clk 0:00:07.6]} 40... Kb3 {[%clk 0:00:16]} 41. Be6 {[%clk 0:00:05.8]}
41... a3 {[%clk 0:00:15.8]} 42. Ba1 {[%clk 0:00:04.6]} 42... Ka2 {[%clk
0:00:15.6]} 43. Bg7 {[%clk 0:00:02.9]} 43... Kb3 {[%clk 0:00:14.6]} 44. f5
{[%clk 0:00:02.4]} 44... a2 {[%clk 0:00:15]} 45. Ba1 {[%clk 0:00:02.1]} 45...
Kc2 {[%clk 0:00:13.9]} 46. f6 {[%clk 0:00:02.3]} 46... Kb1 {[%clk 0:00:14]} 47.
Bc3 {[%clk 0:00:01.9]} 47... a1=Q {[%clk 0:00:14.1]} 48. Bxa1 {[%clk 0:00:02.5]}
48... Kxa1 {[%clk 0:00:14.9]} 49. f7 {[%clk 0:00:03.1]} 49... Kb2 {[%clk
0:00:15.3]} 50. Kf4 {[%clk 0:00:03.6]} 50... Kc3 {[%clk 0:00:15.6]} 51. Kf5
{[%clk 0:00:04.3]} 51... Bxg2 {[%clk 0:00:15.1]} 52. Kg6 {[%clk 0:00:04]} 52...
Kd4 {[%clk 0:00:11.4]} 53. Kxh6 {[%clk 0:00:04.3]} 53... Ke5 {[%clk 0:00:12]}
54. Bd5 {[%clk 0:00:01.8]} 54... Bxd5 {[%clk 0:00:11.8]} 55. cxd5 {[%clk
0:00:02.7]} 55... Kf6 {[%clk 0:00:12.2]} 56. f8=Q+ {[%clk 0:00:01.7]} 56...
Bxf8+ {[%clk 0:00:11.7]} 57. Kh7 {[%clk 0:00:02.3]} 57... b5 {[%clk 0:00:11.7]}
58. h4 {[%clk 0:00:02.3]} 58... b4 {[%clk 0:00:11.8]} 59. Kg8 {[%clk 0:00:02.7]}
59... Bd6 {[%clk 0:00:11.4]} 60. h5 {[%clk 0:00:02.8]} 60... Kg5 {[%clk
0:00:11.8]} 61. h6 {[%clk 0:00:02.2]} 61... Kxh6 {[%clk 0:00:12]} 0-1

[Event "*** Titled Tuesday Blitz"]
[Site "Chess.com"]
[Date "2021.02.02"]
[Round "9"]
[White "Piotrek1979"]
[Black "ShahMatKanal"]
[Result "1-0"]
[WhiteElo "2357"]
[BlackElo "2476"]
[TimeControl "180+1"]
[EndTime "11:47:17 PST"]
[Termination "Piotrek1979 won on time"]

1. e4 {[%clk 0:03:00.9]} 1... c6 {[%clk 0:02:58.4]} 2. d4 {[%clk 0:02:56.8]}
2... g6 {[%clk 0:02:55.6]} 3. Nc3 {[%clk 0:02:55]} 3... d5 {[%clk 0:02:54.7]} 4.
h3 {[%clk 0:02:53.6]} 4... Bg7 {[%clk 0:02:53.4]} 5. Nf3 {[%clk 0:02:52.2]} 5...
Nf6 {[%clk 0:02:48.4]} 6. Bd3 {[%clk 0:02:37.8]} 6... dxe4 {[%clk 0:02:47]} 7.
Nxe4 {[%clk 0:02:37.1]} 7... Nxe4 {[%clk 0:02:47.9]} 8. Bxe4 {[%clk 0:02:37.3]}
8... Nd7 {[%clk 0:02:48.8]} 9. O-O {[%clk 0:02:36.3]} 9... O-O {[%clk
0:02:46.8]} 10. Re1 {[%clk 0:02:33.1]} 10... Qc7 {[%clk 0:02:18.5]} 11. Bg5
{[%clk 0:02:23.2]} 11... Re8 {[%clk 0:02:10.1]} 12. Qd2 {[%clk 0:02:15.1]} 12...
Nf6 {[%clk 0:02:02.6]} 13. Bd3 {[%clk 0:02:09]} 13... a5 {[%clk 0:01:45.8]} 14.
a4 {[%clk 0:02:05.1]} 14... c5 {[%clk 0:01:34.9]} 15. dxc5 {[%clk 0:02:00.1]}
15... Qxc5 {[%clk 0:01:32.8]} 16. Bb5 {[%clk 0:01:54.4]} 16... Rf8 {[%clk
0:01:19.8]} 17. Re5 {[%clk 0:01:48.7]} 17... Qd6 {[%clk 0:01:11.9]} 18. Qxd6
{[%clk 0:01:40.9]} 18... exd6 {[%clk 0:01:11.9]} 19. Re2 {[%clk 0:01:37.1]}
19... Nd5 {[%clk 0:00:45]} 20. c3 {[%clk 0:01:33.6]} 20... Be6 {[%clk
0:00:41.5]} 21. Rd1 {[%clk 0:01:28.3]} 21... h6 {[%clk 0:00:39.8]} 22. Bc1
{[%clk 0:01:25.8]} 22... Rfd8 {[%clk 0:00:32.9]} 23. Nd4 {[%clk 0:01:25]} 23...
Nc7 {[%clk 0:00:27.3]} 24. Nxe6 {[%clk 0:01:22]} 24... fxe6 {[%clk 0:00:25.8]}
25. Bd3 {[%clk 0:01:17.4]} 25... Kf7 {[%clk 0:00:24.9]} 26. h4 {[%clk
0:01:16.4]} 26... h5 {[%clk 0:00:17.5]} 27. Rde1 {[%clk 0:01:11.7]} 27... Re8
{[%clk 0:00:16.1]} 28. Re3 {[%clk 0:01:07.6]} 28... Bf6 {[%clk 0:00:11.5]} 29.
Rf3 {[%clk 0:01:04]} 29... Kg7 {[%clk 0:00:10.8]} 30. g3 {[%clk 0:01:03.8]}
30... Re7 {[%clk 0:00:08.7]} 31. Bh6+ {[%clk 0:01:02.7]} 31... Kxh6 {[%clk
0:00:07.9]} 32. Rxf6 {[%clk 0:01:03.2]} 32... Rg8 {[%clk 0:00:08.7]} 33. Rf4
{[%clk 0:00:50.5]} 33... Rgg7 {[%clk 0:00:08.1]} 34. Bc4 {[%clk 0:00:44.3]}
34... Rg8 {[%clk 0:00:07.2]} 35. Rd4 {[%clk 0:00:36]} 35... Rd8 {[%clk
0:00:04.6]} 36. f4 {[%clk 0:00:33.8]} 36... Kg7 {[%clk 0:00:04.7]} 37. Red1
{[%clk 0:00:31.5]} 37... d5 {[%clk 0:00:04.2]} 38. Bf1 {[%clk 0:00:28.8]} 38...
Kf6 {[%clk 0:00:03.1]} 39. Re1 {[%clk 0:00:25.7]} 39... Rc8 {[%clk 0:00:02.9]}
40. Bh3 {[%clk 0:00:24.8]} 40... Ne8 {[%clk 0:00:02.6]} 41. Rxd5 {[%clk
0:00:23.7]} 41... exd5 {[%clk 0:00:02.1]} 42. Rxe7 {[%clk 0:00:22.7]} 42... Kxe7
{[%clk 0:00:02.3]} 43. Bxc8 {[%clk 0:00:22.1]} 43... b6 {[%clk 0:00:03.2]} 44.
Ba6 {[%clk 0:00:15.4]} 44... Nd6 {[%clk 0:00:03.2]} 45. Bd3 {[%clk 0:00:15.8]}
45... Kf6 {[%clk 0:00:03.1]} 46. Kf2 {[%clk 0:00:14.9]} 46... Ne8 {[%clk
0:00:02.7]} 47. Ke3 {[%clk 0:00:14.7]} 47... Nc7 {[%clk 0:00:01.8]} 48. Kd4
{[%clk 0:00:14.2]} 48... Kf7 {[%clk 0:00:01.8]} 49. Ke5 {[%clk 0:00:13.3]} 49...
Ke7 {[%clk 0:00:01.6]} 50. Bxg6 {[%clk 0:00:12.4]} 50... b5 {[%clk 0:00:02.1]}
51. Bxh5 {[%clk 0:00:11.9]} 51... bxa4 {[%clk 0:00:02.3]} 52. Bd1 {[%clk
0:00:12.8]} 52... a3 {[%clk 0:00:02]} 53. bxa3 {[%clk 0:00:12.3]} 53... Nb5
{[%clk 0:00:02.5]} 54. Bf3 {[%clk 0:00:08.8]} 54... Nxa3 {[%clk 0:00:02]} 55.
Bxd5 {[%clk 0:00:08.7]} 55... Nb5 {[%clk 0:00:02.3]} 56. c4 {[%clk 0:00:08.8]}
56... Nc7 {[%clk 0:00:02]} 57. c5 {[%clk 0:00:09.7]} 57... a4 {[%clk 0:00:02.1]}
58. Bc4 {[%clk 0:00:09.2]} 58... Kd7 {[%clk 0:00:01.5]} 59. h5 {[%clk
0:00:09.2]} 1-0

[Event "*** Titled Tuesday Blitz"]
[Site "Chess.com"]
[Date "2021.02.02"]
[Round "9"]
[White "ridnani2021"]
[Black "Chesswizard_2007"]
[Result "0-1"]
[WhiteElo "2121"]
[BlackElo "2684"]
[TimeControl "180+1"]
[EndTime "11:47:25 PST"]
[Termination "Chesswizard_2007 won by checkmate"]

1. e4 {[%clk 0:03:00.9]} 1... g6 {[%clk 0:02:51.3]} 2. d4 {[%clk 0:03:00]} 2...
Bg7 {[%clk 0:02:44.8]} 3. Nc3 {[%clk 0:02:59.6]} 3... d5 {[%clk 0:02:42.8]} 4.
e5 {[%clk 0:02:59.4]} 4... c5 {[%clk 0:02:39.7]} 5. Nf3 {[%clk 0:02:57]} 5...
Nc6 {[%clk 0:02:35.2]} 6. Be3 {[%clk 0:02:42.6]} 6... cxd4 {[%clk 0:02:33.6]} 7.
Nxd4 {[%clk 0:02:43.5]} 7... Nxe5 {[%clk 0:02:32.6]} 8. Bb5+ {[%clk 0:02:42.6]}
8... Kf8 {[%clk 0:02:30.8]} 9. O-O {[%clk 0:02:39.4]} 9... a6 {[%clk 0:02:30.6]}
10. Be2 {[%clk 0:02:38.6]} 10... Nc6 {[%clk 0:02:29.9]} 11. Nb3 {[%clk 0:02:37]}
11... Nf6 {[%clk 0:02:29.3]} 12. Bf3 {[%clk 0:02:35.3]} 12... e6 {[%clk
0:02:27.9]} 13. Bc5+ {[%clk 0:02:34.2]} 13... Kg8 {[%clk 0:02:20.2]} 14. a4
{[%clk 0:02:33.3]} 14... Bd7 {[%clk 0:02:20.3]} 15. a5 {[%clk 0:02:32.9]} 15...
Rc8 {[%clk 0:02:19.9]} 16. Bb6 {[%clk 0:02:32.9]} 16... Qe8 {[%clk 0:02:19.4]}
17. Nc5 {[%clk 0:02:32.9]} 17... Nd8 {[%clk 0:02:17.3]} 18. b4 {[%clk
0:02:28.4]} 18... Bf8 {[%clk 0:02:12]} 19. Qd4 {[%clk 0:02:21.9]} 19... Be7
{[%clk 0:02:08.5]} 20. Rab1 {[%clk 0:02:14.7]} 20... Nc6 {[%clk 0:02:08.6]} 21.
Qd2 {[%clk 0:02:13.5]} 21... Ne5 {[%clk 0:02:07.1]} 22. Be2 {[%clk 0:02:10.6]}
22... Bc6 {[%clk 0:02:04.1]} 23. f4 {[%clk 0:02:04.9]} 23... Nc4 {[%clk
0:02:01.1]} 24. Bxc4 {[%clk 0:02:04.1]} 24... dxc4 {[%clk 0:02:02]} 25. Rbd1
{[%clk 0:01:59.3]} 25... Nd5 {[%clk 0:02:00.2]} 26. Nxd5 {[%clk 0:01:57.7]}
26... Bxd5 {[%clk 0:02:01.1]} 27. Qd4 {[%clk 0:01:55.1]} 27... Qf8 {[%clk
0:01:53.9]} 28. c3 {[%clk 0:01:51.4]} 28... Qg7 {[%clk 0:01:52.4]} 29. Rfe1
{[%clk 0:01:47.9]} 29... Qxd4+ {[%clk 0:01:51.1]} 30. Rxd4 {[%clk 0:01:47]}
30... Bf6 {[%clk 0:01:52]} 31. Nd7 {[%clk 0:01:43.6]} 31... Bg7 {[%clk
0:01:44.9]} 32. Re3 {[%clk 0:01:37.9]} 32... h5 {[%clk 0:01:42.6]} 33. Rd1
{[%clk 0:01:34]} 33... Kh7 {[%clk 0:01:39.1]} 34. Nc5 {[%clk 0:01:30.5]} 34...
Bh6 {[%clk 0:01:35.9]} 35. g3 {[%clk 0:01:28.4]} 35... h4 {[%clk 0:01:36.3]} 36.
Ne4 {[%clk 0:01:22]} 36... Bg7 {[%clk 0:01:34.3]} 37. Bd4 {[%clk 0:01:09]} 37...
Kg8 {[%clk 0:01:32.3]} 38. g4 {[%clk 0:01:06.5]} 38... f5 {[%clk 0:01:23.4]} 39.
Ng5 {[%clk 0:00:59.8]} 39... Rc6 {[%clk 0:01:19.8]} 40. gxf5 {[%clk 0:00:57]}
40... gxf5 {[%clk 0:01:18]} 41. Kf2 {[%clk 0:00:54.8]} 41... Bxd4 {[%clk
0:01:13.8]} 42. Rxd4 {[%clk 0:00:53.9]} 42... Kg7 {[%clk 0:01:13.3]} 43. h3
{[%clk 0:00:52.8]} 43... Kf6 {[%clk 0:01:13]} 44. Re5 {[%clk 0:00:49.6]} 44...
Rg8 {[%clk 0:01:10.8]} 45. Re3 {[%clk 0:00:48.4]} 45... Rc7 {[%clk 0:01:05.3]}
46. Rd1 {[%clk 0:00:47.5]} 46... Re7 {[%clk 0:00:54]} 47. Rde1 {[%clk 0:00:47]}
47... Rge8 {[%clk 0:00:50.7]} 48. Rd1 {[%clk 0:00:45]} 48... Rb8 {[%clk
0:00:47]} 49. Rde1 {[%clk 0:00:40.3]} 49... b6 {[%clk 0:00:47.4]} 50. Ra1 {[%clk
0:00:39]} 50... e5 {[%clk 0:00:44.1]} 51. axb6 {[%clk 0:00:37]} 51... Rxb6
{[%clk 0:00:41.2]} 52. Rae1 {[%clk 0:00:36.6]} 52... e4 {[%clk 0:00:40.5]} 53.
Ra1 {[%clk 0:00:36.3]} 53... Rg7 {[%clk 0:00:38.2]} 54. Re2 {[%clk 0:00:36]}
54... Rxg5 {[%clk 0:00:38.1]} 55. fxg5+ {[%clk 0:00:36]} 55... Kxg5 {[%clk
0:00:39]} 56. Rea2 {[%clk 0:00:36.1]} 56... Bb7 {[%clk 0:00:38.2]} 57. Ra5
{[%clk 0:00:35.9]} 57... Kf4 {[%clk 0:00:38.1]} 58. Rg1 {[%clk 0:00:35.8]} 58...
Rd6 {[%clk 0:00:36.3]} 59. Ke2 {[%clk 0:00:34.8]} 59... Bc8 {[%clk 0:00:28.7]}
60. Rf1+ {[%clk 0:00:32.8]} 60... Kg3 {[%clk 0:00:28.7]} 61. Rc5 {[%clk
0:00:30.7]} 61... Bd7 {[%clk 0:00:25.6]} 62. Rxc4 {[%clk 0:00:30.6]} 62... Bb5
{[%clk 0:00:25.5]} 63. Rxf5 {[%clk 0:00:28.9]} 63... Bxc4+ {[%clk 0:00:25.6]}
64. Ke3 {[%clk 0:00:29.8]} 64... Kxh3 {[%clk 0:00:24.4]} 65. Rc5 {[%clk
0:00:27.7]} 65... Bd3 {[%clk 0:00:23.6]} 66. Rh5 {[%clk 0:00:27.6]} 66... Rg6
{[%clk 0:00:22.8]} 67. Kd4 {[%clk 0:00:26.6]} 67... Kg4 {[%clk 0:00:23.3]} 68.
Rh8 {[%clk 0:00:26]} 68... h3 {[%clk 0:00:23.3]} 69. c4 {[%clk 0:00:25.8]} 69...
Kg3 {[%clk 0:00:20.4]} 70. c5 {[%clk 0:00:25.4]} 70... h2 {[%clk 0:00:21]} 71.
Kd5 {[%clk 0:00:24.5]} 71... e3 {[%clk 0:00:20.4]} 72. c6 {[%clk 0:00:23.7]}
72... e2 {[%clk 0:00:20.8]} 73. c7 {[%clk 0:00:23.9]} 73... Bf5 {[%clk
0:00:18.1]} 74. c8=Q {[%clk 0:00:19.8]} 74... Bxc8 {[%clk 0:00:15.9]} 75. Rxc8
{[%clk 0:00:20.7]} 75... e1=Q {[%clk 0:00:16.3]} 76. Rc3+ {[%clk 0:00:20.2]}
76... Qxc3 {[%clk 0:00:15.9]} 77. b5 {[%clk 0:00:20.6]} 77... h1=Q# {[%clk
0:00:16.8]} 0-1

[Event "*** Titled Tuesday Blitz"]
[Site "Chess.com"]
[Date "2021.02.02"]
[Round "9"]
[White "doons21"]
[Black "Gmedmundo"]
[Result "1/2-1/2"]
[WhiteElo "2549"]
[BlackElo "2418"]
[TimeControl "180+1"]
[EndTime "11:47:35 PST"]
[Termination "Game drawn - insufficient material"]

1. e4 {[%clk 0:03:00.9]} 1... c5 {[%clk 0:02:59.4]} 2. c3 {[%clk 0:03:00.9]}
2... d5 {[%clk 0:02:58.5]} 3. exd5 {[%clk 0:03:01.5]} 3... Qxd5 {[%clk
0:02:58.1]} 4. d4 {[%clk 0:03:02.4]} 4... Nf6 {[%clk 0:02:57.9]} 5. Nf3 {[%clk
0:03:03]} 5... Nc6 {[%clk 0:02:57.3]} 6. Be2 {[%clk 0:03:00.8]} 6... cxd4 {[%clk
0:02:56.5]} 7. cxd4 {[%clk 0:03:00.7]} 7... Bf5 {[%clk 0:02:56.3]} 8. Nc3 {[%clk
0:02:58.5]} 8... Qa5 {[%clk 0:02:56.1]} 9. O-O {[%clk 0:02:50.7]} 9... e6 {[%clk
0:02:55.4]} 10. Bb5 {[%clk 0:02:39.3]} 10... Bb4 {[%clk 0:02:54.2]} 11. Qb3
{[%clk 0:02:04.7]} 11... O-O {[%clk 0:02:40.4]} 12. Bxc6 {[%clk 0:02:03]} 12...
bxc6 {[%clk 0:02:37.7]} 13. Qc4 {[%clk 0:02:03.5]} 13... Nd5 {[%clk 0:02:20.2]}
14. Bd2 {[%clk 0:01:57.9]} 14... Bxc3 {[%clk 0:02:09.3]} 15. Bxc3 {[%clk
0:01:51.5]} 15... Qb5 {[%clk 0:02:02.5]} 16. Qc5 {[%clk 0:01:35.8]} 16... Qxc5
{[%clk 0:01:55]} 17. dxc5 {[%clk 0:01:36]} 17... Rac8 {[%clk 0:01:46.7]} 18. Ba5
{[%clk 0:01:27.3]} 18... Bg6 {[%clk 0:01:42]} 19. Ne5 {[%clk 0:01:13.8]} 19...
f6 {[%clk 0:01:40.8]} 20. Nc4 {[%clk 0:01:13.5]} 20... Bd3 {[%clk 0:01:37.1]}
21. Rfc1 {[%clk 0:01:13.9]} 21... Bxc4 {[%clk 0:01:36.2]} 22. Rxc4 {[%clk
0:01:13.6]} 22... e5 {[%clk 0:01:33.9]} 23. Bd2 {[%clk 0:01:08.3]} 23... Rf7
{[%clk 0:01:31.9]} 24. Kf1 {[%clk 0:01:05.1]} 24... Rb8 {[%clk 0:01:30.9]} 25.
b3 {[%clk 0:01:04.7]} 25... Rd7 {[%clk 0:01:29.8]} 26. Ke2 {[%clk 0:01:04.5]}
26... Kf7 {[%clk 0:01:29.1]} 27. h4 {[%clk 0:01:03.5]} 27... h5 {[%clk
0:01:27.2]} 28. Rac1 {[%clk 0:01:01.2]} 28... Ke6 {[%clk 0:01:26.3]} 29. Ra4
{[%clk 0:01:00.1]} 29... Nc7 {[%clk 0:01:09.6]} 30. Rcc4 {[%clk 0:00:55.4]}
30... Rbd8 {[%clk 0:01:07.2]} 31. Be1 {[%clk 0:00:44.7]} 31... Nb5 {[%clk
0:01:06]} 32. Ra6 {[%clk 0:00:39.3]} 32... Kf5 {[%clk 0:00:59.7]} 33. f3 {[%clk
0:00:33.1]} 33... Nd4+ {[%clk 0:00:52.1]} 34. Kf2 {[%clk 0:00:31.9]} 34... Rd5
{[%clk 0:00:42.9]} 35. Bc3 {[%clk 0:00:30.1]} 35... Ne6 {[%clk 0:00:39]} 36.
Rxc6 {[%clk 0:00:27.8]} 36... Rd1 {[%clk 0:00:37.8]} 37. Rd6 {[%clk 0:00:22.9]}
37... R1xd6 {[%clk 0:00:36.7]} 38. cxd6 {[%clk 0:00:23.8]} 38... Rxd6 {[%clk
0:00:35.8]} 39. a4 {[%clk 0:00:24.3]} 39... Nf4 {[%clk 0:00:32]} 40. g3 {[%clk
0:00:22.5]} 40... Nd5 {[%clk 0:00:30.2]} 41. Bd2 {[%clk 0:00:19.4]} 41... Rd7
{[%clk 0:00:23.8]} 42. Ke2 {[%clk 0:00:19.5]} 42... Ke6 {[%clk 0:00:22.5]} 43.
b4 {[%clk 0:00:19.4]} 43... Nb6 {[%clk 0:00:21.1]} 44. Rc6+ {[%clk 0:00:19.5]}
44... Kd5 {[%clk 0:00:20.3]} 45. Rc5+ {[%clk 0:00:18.9]} 45... Ke6 {[%clk
0:00:19.7]} 46. a5 {[%clk 0:00:19.3]} 46... Nd5 {[%clk 0:00:18.9]} 47. b5 {[%clk
0:00:18.9]} 47... Rc7 {[%clk 0:00:18.1]} 48. Rxc7 {[%clk 0:00:17.7]} 48... Nxc7
{[%clk 0:00:18]} 49. b6 {[%clk 0:00:18.4]} 49... axb6 {[%clk 0:00:18]} 50. axb6
{[%clk 0:00:19.3]} 50... Na6 {[%clk 0:00:17.9]} 51. Kd3 {[%clk 0:00:19.6]} 51...
Kd5 {[%clk 0:00:17.9]} 52. b7 {[%clk 0:00:17.7]} 52... f5 {[%clk 0:00:17.3]} 53.
Be3 {[%clk 0:00:16]} 53... Kc6 {[%clk 0:00:17]} 54. g4 {[%clk 0:00:16.5]} 54...
hxg4 {[%clk 0:00:16.2]} 55. fxg4 {[%clk 0:00:16.7]} 55... fxg4 {[%clk
0:00:16.1]} 56. Ke4 {[%clk 0:00:16.6]} 56... Kxb7 {[%clk 0:00:15.6]} 57. Kxe5
{[%clk 0:00:17.1]} 57... Kc6 {[%clk 0:00:15.7]} 58. Kf5 {[%clk 0:00:17.2]} 58...
Kd7 {[%clk 0:00:15]} 59. Kg6 {[%clk 0:00:16.3]} 59... Nc7 {[%clk 0:00:13.2]} 60.
Kxg7 {[%clk 0:00:15.7]} 60... Nd5 {[%clk 0:00:12.9]} 61. Bd4 {[%clk 0:00:14.3]}
61... Nf4 {[%clk 0:00:11]} 62. Kf6 {[%clk 0:00:13.4]} 62... g3 {[%clk
0:00:10.2]} 63. Kf5 {[%clk 0:00:09.7]} 63... Ne2 {[%clk 0:00:10.1]} 64. Be3
{[%clk 0:00:09.3]} 64... Ke7 {[%clk 0:00:08.9]} 65. h5 {[%clk 0:00:09.6]} 65...
Kf7 {[%clk 0:00:08.7]} 66. Kg4 {[%clk 0:00:10.1]} 66... g2 {[%clk 0:00:08.7]}
67. Kf3 {[%clk 0:00:09.1]} 67... g1=Q {[%clk 0:00:07.8]} 68. Bxg1 {[%clk
0:00:09.8]} 68... Nxg1+ {[%clk 0:00:07.7]} 69. Kf4 {[%clk 0:00:10]} 69... Kg7
{[%clk 0:00:07.4]} 70. h6+ {[%clk 0:00:10.9]} 70... Kxh6 {[%clk 0:00:07.3]}
1/2-1/2